bitfinex/quotes_ETHUSD_20251015
["timestamp","ask_amount","ask_price","bid_price","bid_amount"]
[1760522467930,10.42040913,4160.2,4160.1,1e-08]
[1760522468251,22.56058913,4160.2,4160.1,0.43920001]
[1760522468417,18.44866413,4160.2,4160.1,0.66440001]
[1760522468605,18.20578313,4160.2,4160.1,0.66440001]
[1760522469114,21.15739213,4160.2,4160.1,0.22520001]
[1760522469309,21.15739213,4160.2,4160.1,0.66440001]
[1760522469517,20.26215313,4160.2,4160.1,0.66440001]
[1760522469930,10.42040913,4160.2,4160.1,0.66440001]
[1760522470126,23.32305113,4160.2,4160.1,0.66440001]
[1760522470438,22.27992513,4160.2,4160.1,0.66440001]
[1760522471020,22.85093213,4160.2,4160.1,0.66440001]
[1760522471729,16.16758758,4160.2,4160.1,0.66440001]
[1760522471932,15.08458758,4160.2,4160.1,0.66440001]
[1760522472117,1.92,4160.4,4160.1,0.66440001]
[1760522472438,2.91607855,4160.4,4160.1,0.22520001]
[1760522472612,2.40316828,4161.2,4160.1,0.22520001]
[1760522472613,2.428,4160.3,4160.1,0.22520001]
[1760522472813,2.428,4160.3,4160.2,0.4482]
[1760522473438,12.72421081,4160.3,4160.2,0.4482]
[1760522473858,4.348,4160.3,4160.2,0.4482]
[1760522474141,6.75167281,4160.3,4160.2,0.4482]
[1760522474444,4.348,4160.3,4160.2,0.4482]
[1760522475211,7.327596,4160.3,4160.2,0.4482]
[1760522475411,4.349,4160.3,4160.2,0.4482]
[1760522476445,20.06887458,4160.2,4160.1,0.23220001]
[1760522476647,14.75358858,4160.2,4160.1,1e-08]
[1760522477716,34.08522658,4160.2,4160.1,1e-08]
[1760522477927,28.41174158,4160.2,4160.1,1e-08]
[1760522478640,5.05633058,4160.2,4160.1,1e-08]
[1760522478946,28.46940758,4160.2,4160.1,1e-08]
[1760522479108,27.00478158,4160.2,4160.1,1e-08]
[1760522479312,26.90498158,4160.2,4160.1,1e-08]
[1760522479537,27.00398158,4160.2,4160.1,1e-08]
[1760522479736,27.24320758,4160.2,4160.1,1e-08]
[1760522479911,25.47768658,4160.2,4160.1,1e-08]
[1760522480115,18.52178658,4160.2,4160.1,1e-08]
[1760522480313,18.57688236,4160.2,4160.1,1e-08]
[1760522480820,16.51432936,4160.2,4160.1,1e-08]
[1760522481946,18.45841358,4160.2,4160.1,1e-08]
[1760522482146,17.82325958,4160.2,4160.1,1e-08]
[1760522482849,7.12253058,4160.2,4160.1,1e-08]
[1760522483052,17.95051258,4160.2,4160.1,1e-08]
[1760522483348,18.04951258,4160.2,4160.1,1e-08]
[1760522483939,26.63443758,4160.2,4160.1,1e-08]
[1760522484717,25.32358258,4160.2,4160.1,1e-08]
[1760522484945,25.24425158,4160.2,4160.1,1e-08]
[1760522485252,23.17725158,4160.2,4160.1,1e-08]
[1760522485439,29.71632352,4159.7,4159.6,0.002]
[1760522485657,24.67329407,4159.7,4159.6,0.002]
[1760522486156,11.80608207,4159.7,4159.6,0.4502]
[1760522486453,9.66709807,4159.7,4159.6,0.4502]
[1760522487247,12.16480707,4159.7,4159.6,0.4502]
[1760522487452,12.64580707,4159.7,4159.6,0.4502]
[1760522487656,13.27940707,4159.7,4159.6,0.002]
[1760522488454,28.52646307,4159.7,4159.6,0.002]
[1760522488654,27.02996507,4159.7,4159.6,0.002]
[1760522489448,29.31095363,4159.7,4159.6,0.002]
[1760522490169,5.40701952,4159.7,4159.6,0.4502]
[1760522490323,7.83401952,4159.7,4159.6,0.4502]
[1760522490526,9.96851652,4159.7,4159.6,0.4502]
[1760522490821,6.481497,4159.7,4159.6,0.4502]
[1760522491015,0.001,4160.3,4159.6,0.4502]
[1760522491250,0.001,4160.3,4160.2,0.2322]
[1760522491453,6.98710281,4160.3,4160.2,0.2322]
[1760522491656,2.428,4160.3,4160.2,0.6804]
[1760522492154,7.35849681,4160.3,4160.2,0.6804]
[1760522492448,11.47796181,4160.3,4160.2,0.6804]
[1760522493240,10.74684181,4160.3,4160.2,0.6804]
[1760522494089,7.09643681,4160.3,4160.2,0.6804]
[1760522494246,4.83167281,4160.3,4160.2,0.6804]
[1760522494762,2.428,4160.3,4160.2,0.6804]
[1760522495349,0.001,4160.3,4160.2,3.08413058]
[1760522495688,2.428,4160.3,4160.2,3.65614789]
[1760522495985,2.428,4160.3,4160.2,1.25241731]
[1760522496303,2.428,4160.3,4160.2,0.6804]
[1760522498397,2.40396172,4159.8,4159.7,0.2322]
[1760522498546,2.52401952,4159.7,4159.6,0.002]
[1760522498749,10.44579552,4159.7,4159.6,0.002]
[1760522499052,9.84476852,4159.7,4159.6,0.002]
[1760522499879,10.17573152,4159.7,4159.6,0.002]
[1760522500076,13.32092743,4159.7,4159.6,0.002]
[1760522500280,15.48692743,4159.7,4159.6,0.002]
[1760522500591,13.32092743,4159.7,4159.6,0.002]
[1760522500789,22.37231943,4159.7,4159.6,0.002]
[1760522501092,15.43285943,4159.7,4159.6,0.002]
[1760522501393,14.55246643,4159.7,4159.6,0.002]
[1760522501750,24.83165243,4159.7,4159.6,0.002]
[1760522501992,23.58403643,4159.7,4159.6,0.002]
[1760522502178,21.57272843,4159.7,4159.6,0.002]
[1760522502689,21.57272843,4159.7,4159.1,0.002]
[1760522502690,32.40407731,4159.6,4159.1,0.002]
[1760522502922,32.40407731,4159.6,4158.7,0.002]
[1760522502923,32.40407731,4159.6,4158.7,1e-08]
[1760522502924,32.66252625,4158.8,4158.7,1e-08]
[1760522503199,32.66252625,4158.8,4157.2,0.2177]
[1760522503200,2.5536,4158.5,4157.2,0.2177]
[1760522503488,30.0,4158.6,4157.2,0.2177]
[1760522503489,2.5536,4158.1,4157.3,0.4659]
[1760522503689,2.40534949,4157.4,4157.3,0.4659]
[1760522503859,9.48603149,4157.4,4157.3,0.4659]
[1760522504058,5.203682,4157.4,4157.3,0.4659]
[1760522504255,2.429,4157.4,4157.3,0.4659]
[1760522504461,2.40500425,4158.0,4157.3,0.4659]
[1760522504660,4.83411438,4157.9,4157.3,0.77481487]
[1760522504882,4.349,4157.8,4157.4,0.4659]
[1760522505081,4.83413627,4157.8,4157.5,0.4659]
[1760522505287,5.33715393,4157.7,4157.6,0.4659]
[1760522505490,2.429,4157.8,4157.2,0.2177]
[1760522505689,2.429,4157.8,4157.6,0.4659]
[1760522506075,2.125978,4157.7,4157.6,0.4659]
[1760522506279,2.429,4157.8,4157.7,0.4659]
[1760522506678,6.75411809,4157.8,4157.7,0.4659]
[1760522506992,4.349,4157.8,4157.7,0.4659]
[1760522507197,2.429,4157.8,4157.7,0.4659]
[1760522508266,2.429,4157.8,4157.7,2.87107593]
[1760522508462,2.429,4157.8,4157.7,0.99353451]
[1760522509296,0.37718177,4159.1,4157.8,2.40511809]
[1760522509499,2.397799,4158.8,4158.1,2.40494372]
[1760522509700,2.40449989,4158.9,4158.7,0.2177]
[1760522509899,6.364907,4158.8,4158.7,0.6836]
[1760522510195,6.517,4158.8,4158.7,0.6836]
[1760522510558,8.530302,4158.8,4158.7,0.6836]
[1760522510761,10.93484177,4158.8,4158.7,0.6836]
[1760522510988,4.597,4158.8,4158.7,0.6836]
[1760522512174,7.00153977,4158.8,4158.7,0.6836]
[1760522512574,2.40461554,4158.7,4158.4,0.2177]
[1760522512795,0.12,4158.6,4158.4,0.2177]
[1760522513390,0.12,4158.6,4158.5,0.4659]
[1760522513793,2.55,4158.6,4158.5,3.17946113]
[1760522514204,2.55,4158.6,4158.5,0.7747479]
[1760522514578,2.55,4158.6,4158.5,0.3088479]
[1760522514903,2.55,4158.6,4158.4,0.2177]
[1760522515069,2.55,4158.6,4158.4,0.6674]
[1760522515272,2.55,4158.6,4158.4,0.2177]
[1760522516085,2.55,4158.6,4158.4,0.6674]
[1760522516506,2.55,4158.6,4158.5,2.85441323]
[1760522516702,2.55,4158.6,4158.5,3.16162455]
[1760522517007,2.55,4158.6,4158.5,0.75691132]
[1760522517175,2.55,4158.6,4158.4,2.62243449]
[1760522517374,2.55,4158.6,4158.5,0.4497]
[1760522517575,2.55,4158.6,4158.4,2.62243449]
[1760522517784,2.55,4158.6,4158.5,0.4497]
[1760522517979,2.55,4158.6,4158.5,2.85441323]
[1760522518693,2.55,4158.6,4158.0,0.12]
[1760522518875,2.55,4158.6,4158.0,0.37250073]
[1760522519081,2.55,4158.6,4158.0,2.77749788]
[1760522519382,2.55,4158.6,4158.1,2.40488832]
[1760522519584,2.55,4158.6,4158.0,2.52498823]
[1760522519784,2.55,4158.6,4158.1,0.6793]
[1760522520100,2.166,4158.5,4158.2,0.4497]
[1760522520300,2.40477721,4158.4,4158.0,0.12]
[1760522520487,2.40477721,4158.4,4157.4,0.4497]
[1760522520488,3.232627,4158.3,4157.4,0.4497]
[1760522520680,2.432,4158.2,4157.6,0.122]
[1760522521014,2.432,4158.2,4157.7,0.29770296]
[1760522521212,2.50399842,4158.1,4157.6,0.002]
[1760522521387,0.12,4157.9,4157.6,0.002]
[1760522521583,13.094867,4157.7,4157.6,0.002]
[1760522522025,18.39793693,4157.7,4157.6,0.002]
[1760522522311,12.46146493,4157.7,4157.6,0.002]
[1760522522516,9.18794493,4157.7,4157.6,0.002]
[1760522523138,4.42151,4157.7,4157.6,0.002]
[1760522523431,6.92678593,4157.7,4157.6,0.002]
[1760522524140,18.17909193,4157.7,4157.6,0.002]
[1760522525094,20.04311193,4157.7,4157.6,0.002]
[1760522525299,16.58321793,4157.7,4157.6,0.002]
[1760522526236,17.11889993,4157.7,4157.6,0.002]
[1760522526440,18.10232326,4157.7,4157.6,0.002]
[1760522527338,35.61289926,4157.7,4157.6,0.002]
[1760522527538,33.95678693,4157.7,4157.6,0.002]
[1760522527712,21.29709293,4157.7,4157.6,0.002]
[1760522528123,35.26227593,4157.7,4157.6,0.002]
[1760522528438,35.61289926,4157.7,4157.6,0.002]
[1760522529126,5.61289926,4157.7,4157.6,0.002]
[1760522529428,35.61289926,4157.7,4157.6,0.002]
[1760522530229,37.78089926,4157.7,4157.6,0.002]
[1760522530806,3.03900735,4157.3,4157.2,1e-08]
[1760522531011,46.60980716,4157.3,4157.2,1e-08]
[1760522531222,46.70990716,4157.3,4157.2,1e-08]
[1760522531417,47.08725613,4157.3,4157.2,1e-08]
[1760522531934,34.95923881,4156.9,4156.8,1e-08]
[1760522532109,37.58343881,4156.9,4156.8,1e-08]
[1760522532308,35.62610514,4156.9,4156.8,1e-08]
[1760522532826,35.62610514,4156.9,4156.7,0.002]
[1760522533030,35.62610514,4156.9,4156.3,1e-08]
[1760522533031,43.82370468,4156.4,4156.3,1e-08]
[1760522533317,46.26070468,4156.4,4156.3,1e-08]
[1760522533533,46.36140468,4156.4,4156.3,1e-08]
[1760522533859,46.71202801,4156.4,4156.3,1e-08]
[1760522534919,47.08948922,4156.4,4156.3,1e-08]
[1760522536200,44.93520003,4156.4,4156.3,1e-08]
[1760522536538,47.09048922,4156.4,4156.3,1e-08]
[1760522536738,44.65248922,4156.4,4156.3,1e-08]
[1760522536939,44.89205589,4156.4,4156.3,1e-08]
[1760522537124,43.31970089,4156.4,4156.3,1e-08]
[1760522537517,46.73986589,4156.4,4156.3,1e-08]
[1760522538745,12.58032141,4156.4,4156.3,1e-08]
[1760522539057,15.01832141,4156.4,4156.3,1e-08]
[1760522539454,15.65192141,4156.4,4156.3,1e-08]
[1760522539629,29.73608241,4156.4,4156.3,1e-08]
[1760522539833,26.44031241,4156.4,4156.3,1e-08]
[1760522540234,27.38935141,4156.4,4156.3,1e-08]
[1760522540445,8.89334341,4156.4,4156.3,1e-08]
[1760522540760,6.20146541,4156.4,4156.3,0.45010001]
[1760522540959,10.79993941,4156.4,4156.3,0.45010001]
[1760522541166,6.47401121,4156.4,4156.3,0.45010001]
[1760522541364,2.40572442,4156.8,4156.3,0.45010001]
[1760522541524,0.12150701,4157.9,4156.7,0.2166]
[1760522541727,6.149604,4157.7,4156.8,0.4501]
[1760522541936,2.40523378,4157.6,4156.8,0.4501]
[1760522542135,5.187988,4157.3,4156.8,0.4501]
[1760522542342,2.78228,4157.1,4156.8,0.4501]
[1760522542626,2.439,4157.2,4156.8,0.4501]
[1760522542822,2.40465541,4158.6,4156.8,0.75735059]
[1760522543036,0.12,4157.1,4156.9,2.85573385]
[1760522543235,2.439,4157.0,4156.9,2.40563385]
[1760522543475,2.40445412,4159.0,4156.7,2.62231749]
[1760522543476,0.11997401,4158.8,4156.7,0.2166]
[1760522543765,0.12,4157.8,4157.0,0.12]
[1760522543968,0.12,4157.8,4156.7,2.62234562]
[1760522543969,0.12,4157.8,4157.1,0.6167]
[1760522543970,17.407229,4157.5,4157.1,0.6167]
[1760522544118,7.553842,4157.3,4157.1,0.6167]
[1760522544320,13.49111721,4157.2,4157.1,0.2166]
[1760522544525,13.77819768,4156.8,4156.7,0.2166]
[1760522544768,16.21819768,4156.8,4156.7,0.2166]
[1760522544933,16.21819768,4156.8,4156.5,0.2166]
[1760522544934,9.11085628,4156.6,4156.5,0.2166]
[1760522545258,2.44,4156.8,4156.5,0.2166]
[1760522545441,1.24831185,4159.8,4156.5,0.2166]
[1760522545442,2.40489299,4158.2,4156.5,0.2166]
[1760522545756,0.12,4156.6,4156.5,0.2166]
[1760522545926,2.56,4156.6,4156.5,0.6667]
[1760522547823,2.56,4156.6,4156.5,3.07257032]
[1760522548023,2.44,4156.6,4156.5,3.07257032]
[1760522548273,2.44,4156.6,4156.5,0.6667]
[1760522548828,2.56,4156.6,4156.5,0.6667]
[1760522549319,4.96581244,4156.6,4156.5,0.6667]
[1760522549521,17.8850232,4156.4,4156.3,0.00200001]
[1760522549820,15.4770622,4156.4,4156.3,0.00200001]
[1760522549986,12.2250112,4156.4,4156.3,0.00200001]
[1760522550185,14.3930112,4156.4,4156.3,0.00200001]
[1760522550389,13.2973112,4156.4,4156.3,0.00200001]
[1760522551292,13.01723763,4156.4,4156.3,0.00200001]
[1760522551591,15.41573163,4156.4,4156.3,0.00200001]
[1760522551918,11.18681863,4156.4,4156.3,0.00200001]
[1760522552293,13.10681863,4156.4,4156.3,0.00200001]
[1760522552513,18.76741263,4156.4,4156.3,0.00200001]
[1760522552718,18.10435063,4156.4,4156.3,0.00200001]
[1760522553628,20.47736863,4156.4,4156.3,0.00200001]
[1760522553793,20.08110463,4156.4,4156.3,0.00200001]
[1760522554195,20.86630463,4156.4,4156.3,0.00200001]
[1760522554726,36.26487796,4156.4,4156.3,0.00200001]
[1760522555133,36.64233371,4156.4,4156.3,0.00200001]
[1760522555331,2.5536,4155.9,4155.8,1e-08]
[1760522555507,38.0642839,4155.9,4155.8,1e-08]
[1760522555827,38.2159839,4155.9,4155.8,1e-08]
[1760522556030,9.6319489,4155.9,4155.8,1e-08]
[1760522556233,9.65538266,4155.9,4155.8,1e-08]
[1760522556607,18.18940666,4155.9,4155.8,1e-08]
[1760522557125,10.88038166,4155.9,4155.8,1e-08]
[1760522557326,6.034164,4155.9,4155.8,1e-08]
[1760522557516,2.441,4155.9,4155.8,0.45010001]
[1760522557696,6.018835,4155.9,4155.8,0.45010001]
[1760522557902,2.441,4155.9,4155.8,0.45010001]
[1760522558102,6.989936,4155.9,4155.8,0.45010001]
[1760522558614,4.84721766,4155.9,4155.8,1e-08]
[1760522558927,15.54125466,4155.9,4155.8,1e-08]
[1760522559329,8.68621766,4155.9,4155.8,1e-08]
[1760522559531,5.720269,4155.9,4155.8,1e-08]
[1760522559831,0.37747009,4156.7,4155.8,0.45010001]
[1760522559832,1.92,4156.3,4155.8,0.45010001]
[1760522559998,2.40531286,4157.5,4156.2,0.2141]
[1760522559999,17.05016964,4157.5,4156.2,0.2141]
[1760522560204,0.1045,4157.8,4156.2,0.2141]
[1760522560205,2.40578285,4156.7,4156.3,0.4722]
[1760522560449,1.92,4156.5,4156.4,0.4722]
[1760522560941,5.202848,4156.5,4156.4,0.4722]
[1760522561113,2.442,4156.6,4156.4,0.4722]
[1760522561534,2.442,4156.6,4156.5,0.4722]
[1760522566234,2.443,4156.6,4156.5,0.4722]
[1760522566632,8.497216,4156.6,4156.5,0.4722]
[1760522566931,4.650272,4156.6,4156.5,0.4722]
[1760522567245,2.443,4156.6,4156.5,0.4722]
[1760522567560,0.001,4156.6,4156.5,2.87807032]
[1760522567781,2.442,4156.6,4156.5,3.43988562]
[1760522568564,2.442,4156.6,4156.5,0.5618153]
[1760522568765,2.442,4156.6,4156.4,0.12]
[1760522568965,2.442,4156.6,4156.2,0.6863]
[1760522568966,0.12,4156.4,4156.2,0.6863]
[1760522569262,2.442,4156.6,4156.3,0.4722]
[1760522569467,2.442,4156.6,4156.4,0.4722]
[1760522570234,2.168,4156.5,4156.4,0.4722]
[1760522570665,1.084,4156.5,4156.4,0.4722]
[1760522570867,4.609,4156.5,4156.4,3.18736026]
[1760522571749,4.609,4156.5,4156.4,0.4722]
[1760522572187,4.609,4156.5,4156.2,0.2141]
[1760522572371,4.609,4156.5,4156.2,0.6863]
[1760522572694,4.609,4156.5,4156.3,0.4722]
[1760522572985,4.609,4156.5,4156.4,0.4722]
[1760522573546,1.084,4156.5,4156.4,0.4722]
[1760522574774,3.526,4156.5,4156.4,0.4722]
[1760522575471,0.0002,4156.6,4156.4,0.4722]
[1760522575472,0.0002,4156.6,4156.5,2.40587032]
[1760522575671,3.5262,4156.6,4156.5,2.40587032]
[1760522575972,3.5262,4156.6,4156.5,2.85797032]
[1760522577250,0.0002,4156.6,4156.5,2.85797032]
[1760522577572,1.5232,4156.6,4156.5,2.85797032]
[1760522577759,1.5232,4156.6,4156.5,3.43669516]
[1760522578161,1.0842,4156.6,4156.5,4.07029516]
[1760522578348,3.5252,4156.6,4156.5,4.07029516]
[1760522579357,3.5252,4156.6,4156.5,2.85797032]
[1760522579574,3.5252,4156.6,4155.9,2.40621766]
[1760522579872,3.5252,4156.6,4156.2,2.40604182]
[1760522580074,3.5252,4156.6,4155.8,1e-08]
[1760522580277,3.5252,4156.6,4155.9,2.4061963]
[1760522580573,3.5252,4156.6,4155.9,2.40621624]
[1760522580875,2.40587864,4156.5,4155.8,1e-08]
[1760522581245,2.40587413,4156.5,4155.8,1e-08]
[1760522581444,2.40587413,4156.5,4155.8,2.40626141]
[1760522581650,5.93103023,4156.6,4155.8,1e-08]
[1760522581972,2.40587673,4156.5,4155.8,1e-08]
[1760522582172,2.40587673,4156.5,4155.8,2.40626102]
[1760522582476,3.5252,4156.6,4156.1,2.40605617]
[1760522582683,3.5252,4156.6,4156.2,0.2173]
[1760522582978,3.5252,4156.6,4156.2,0.6694]
[1760522583183,3.5252,4156.6,4156.2,0.2173]
[1760522583988,0.0002,4156.6,4156.5,2.40587032]
[1760522584293,2.1932,4156.6,4156.5,2.85797032]
[1760522585155,3.5262,4156.6,4156.5,12.16903915]
[1760522585478,3.5262,4156.6,4156.5,2.85797032]
[1760522585652,3.5262,4156.6,4156.5,2.97797032]
[1760522585854,3.5262,4156.6,4156.5,3.56432598]
[1760522586256,3.5262,4156.6,4156.5,1.15845566]
[1760522586452,3.5262,4156.6,4156.1,0.002]
[1760522586851,3.5262,4156.6,4156.2,0.2173]
[1760522587064,3.5262,4156.6,4156.1,0.002]
[1760522587265,3.495084,4156.4,4156.1,0.002]
[1760522587478,2.40604398,4156.2,4156.1,0.002]
[1760522587663,5.567689,4156.2,4156.1,0.002]
[1760522588387,2.443,4156.2,4156.1,0.002]
[1760522589584,2.444,4156.2,4156.1,0.002]
[1760522590165,1.084,4156.4,4156.2,2.40604398]
[1760522590371,1.084,4156.4,4156.3,2.84488609]
[1760522590688,3.528,4156.4,4156.3,2.40598609]
[1760522590890,3.528,4156.4,4156.3,2.84488609]
[1760522591090,3.528,4156.4,4156.3,3.4166874]
[1760522591697,3.528,4156.4,4156.3,0.57180131]
[1760522591989,3.528,4156.4,4156.2,2.40600227]
[1760522592160,3.528,4156.4,4156.1,0.2262]
[1760522592363,3.528,4156.4,4156.1,0.002]
[1760522593198,0.2925,4156.3,4156.1,0.002]
[1760522593574,3.528,4156.4,4156.1,0.002]
[1760522594789,1.084,4156.4,4156.1,0.002]
[1760522594985,3.528,4156.3,4156.1,0.002]
[1760522595499,9.436275,4156.2,4156.1,0.002]
[1760522595797,5.61931798,4156.2,4156.1,0.002]
[1760522597295,5.61851798,4156.2,4156.1,0.002]
[1760522597709,8.63217298,4156.2,4156.1,0.002]
[1760522598122,10.55217298,4156.2,4156.1,0.002]
[1760522598543,2.40685472,4154.8,4153.8,0.2166]
[1760522598687,7.308223,4154.6,4153.8,0.2166]
[1760522599013,4.403024,4154.6,4153.8,2.62401983]
[1760522599208,4.403024,4154.6,4153.9,2.40733282]
[1760522599405,2.444,4154.7,4154.0,2.40731]
[1760522599704,4.85091637,4154.7,4154.0,2.40731]
[1760522600080,2.168,4154.6,4154.5,2.40701]
[1760522600280,2.168,4154.6,4154.5,2.84591]
[1760522600494,2.168,4154.6,4154.5,3.50358028]
[1760522600495,4.612,4154.6,4154.5,3.50358028]
[1760522600692,4.612,4154.6,4154.5,3.47951]
[1760522601500,4.612,4154.6,4154.5,3.17951]
[1760522601712,4.612,4154.6,4154.5,3.73817432]
[1760522603216,1.084,4156.4,4156.0,2.40610824]
[1760522603424,1.084,4156.4,4156.0,2.4061162]
[1760522603425,3.529,4156.3,4156.0,2.4061162]
[1760522603603,3.529,4156.3,4155.9,2.40621339]
[1760522603788,3.529,4156.3,4155.5,0.2242]
[1760522603990,3.529,4156.3,4155.8,2.40622223]
[1760522604308,3.529,4156.3,4155.5,0.48251]
[1760522604309,3.529,4156.3,4156.2,2.63024398]
[1760522604919,3.529,4156.3,4156.2,2.40604398]
[1760522605297,3.529,4156.3,4156.2,2.84494398]
[1760522605514,3.529,4156.3,4155.8,2.40627556]
[1760522605715,3.529,4156.3,4155.5,0.92141]
[1760522605919,3.529,4156.3,4156.1,2.40609029]
[1760522606128,3.529,4156.3,4156.2,2.40604398]
[1760522606325,3.529,4156.3,4155.7,2.40633346]
[1760522606621,3.529,4156.3,4156.0,2.406151]
[1760522606805,3.529,4156.3,4156.0,2.4061491]
[1760522607001,3.529,4156.3,4155.6,0.284141]
[1760522607222,3.529,4156.3,4156.1,2.40608745]
[1760522607422,3.529,4156.3,4156.0,2.40612492]
[1760522607825,3.529,4156.3,4156.1,2.40609605]
[1760522608205,3.529,4156.3,4155.5,0.6631]
[1760522608517,3.529,4156.3,4156.0,0.12]
[1760522608914,3.6318,4156.3,4156.0,0.12]
[1760522609120,3.6318,4156.3,4156.0,2.52614583]
[1760522609324,3.6318,4156.3,4156.0,0.12]
[1760522609649,3.6318,4156.3,4155.5,0.2242]
[1760522609650,6.732806,4156.1,4155.5,0.12]
[1760522609935,6.732806,4156.1,4154.5,2.96764544]
[1760522609936,3.815204,4155.5,4154.5,0.002]
[1760522610103,4.613,4155.4,4154.7,0.12]
[1760522610300,0.12,4155.2,4154.7,0.12]
[1760522610498,0.12,4155.2,4154.8,2.40685003]
[1760522610701,0.12,4155.2,4154.7,0.12]
[1760522611125,0.12,4155.2,4154.7,2.52686022]
[1760522611322,0.2237,4155.2,4154.7,2.52686022]
[1760522611532,0.2237,4155.2,4154.7,0.12]
[1760522611740,0.2237,4155.2,4154.5,2.40897642]
[1760522611741,2.60689658,4154.8,4154.5,0.002]
[1760522612035,2.444,4154.7,4154.5,0.002]
[1760522612239,4.9491287,4154.7,4154.5,0.002]
[1760522612403,0.0982,4154.6,4154.5,0.002]
[1760522613230,2.444,4154.7,4154.5,0.002]
[1760522613435,2.40697058,4154.6,4154.5,0.002]
[1760522613742,12.18499258,4154.6,4154.5,0.002]
[1760522614514,4.42517058,4154.6,4154.5,0.002]
[1760522614711,16.43747858,4154.6,4154.5,0.002]
[1760522615736,24.55044558,4154.6,4154.5,0.002]
[1760522615911,20.52974725,4154.6,4154.5,0.002]
[1760522616739,26.67587225,4154.6,4154.5,0.002]
[1760522617041,24.07417225,4154.6,4154.5,0.002]
[1760522617246,21.83930325,4154.6,4154.5,0.002]
[1760522617743,18.68131325,4154.6,4154.5,0.002]
[1760522617907,9.08412525,4154.6,4154.5,0.002]
[1760522618108,1.92,4154.6,4154.5,0.002]
[1760522618308,8.87569658,4154.6,4154.5,0.002]
[1760522618545,6.87017058,4154.6,4154.5,0.002]
[1760522618749,9.04559658,4154.6,4154.5,0.002]
[1760522618923,6.87017058,4154.6,4154.5,0.002]
[1760522619320,6.77197058,4154.6,4154.5,0.002]
[1760522619539,11.07724677,4154.6,4154.5,0.002]
[1760522619840,15.23929877,4154.6,4154.5,0.002]
[1760522620210,17.40729877,4154.6,4154.5,0.002]
[1760522620410,7.70905377,4154.6,4154.5,0.002]
[1760522620829,9.72938077,4154.6,4154.5,0.002]
[1760522621029,7.70905377,4154.6,4154.5,0.002]
[1760522621336,6.77117058,4154.6,4154.5,0.002]
[1760522621543,0.37753001,4154.8,4154.5,0.002]
[1760522621719,3.155416,4156.0,4154.6,2.40692631]
[1760522621910,0.001,4154.6,4154.5,2.40902007]
[1760522622117,2.45,4154.6,4154.5,2.89304372]
[1760522622340,2.45,4154.6,4154.5,3.36584372]
[1760522622914,2.45,4154.6,4154.5,3.389914]
[1760522623231,2.45,4154.6,4154.5,7.383514]
[1760522623232,0.001,4154.6,4154.5,7.383514]
[1760522623555,0.001,4155.1,4155.0,3.04033886]
[1760522623856,0.12,4157.4,4156.5,2.40587032]
[1760522624012,0.4162,4156.6,4156.5,2.40587032]
[1760522624213,0.4162,4156.6,4156.5,2.99867032]
[1760522624442,0.6602,4156.6,4156.5,4.91867032]
[1760522624961,0.001,4157.5,4156.5,4.91867032]
[1760522624962,0.0004,4157.1,4156.6,1.92]
[1760522625118,0.0004,4157.1,4156.5,0.4728]
[1760522625119,0.0004,4157.1,4156.7,2.66851165]
[1760522625437,0.0004,4157.1,4156.9,2.40559494]
[1760522625816,0.0004,4157.1,4157.0,0.4728]
[1760522626016,2.2434,4157.1,4157.0,0.4728]
[1760522626850,2.2434,4157.1,4157.0,2.87838094]
[1760522627050,2.2434,4157.1,4157.0,3.43307199]
[1760522627252,2.2434,4157.1,4157.0,1.02749105]
[1760522627422,2.2434,4157.1,4157.0,0.4728]
[1760522628235,2.2434,4157.1,4157.0,2.87838094]
[1760522628437,2.2434,4157.1,4157.0,0.4728]
[1760522628657,2.2434,4157.1,4157.0,2.87838094]
[1760522629466,2.2434,4157.1,4157.0,0.4728]
[1760522629660,2.2434,4157.1,4156.9,2.40562398]
[1760522629963,2.2434,4157.1,4156.6,0.4728]
[1760522630164,1.084,4157.0,4156.6,2.40580768]
[1760522630573,1.084,4157.0,4156.6,2.87860768]
[1760522631478,1.084,4157.0,4156.4,0.2351]
[1760522632078,1.084,4157.0,4155.4,0.2351]
[1760522632079,0.0991,4156.9,4155.4,0.2351]
[1760522632377,1.084,4157.0,4155.6,1.92]
[1760522632552,1.084,4157.0,4155.7,1.60983493]
[1760522632753,1.084,4157.0,4156.3,2.40593976]
[1760522632954,1.084,4157.0,4156.4,0.4728]
[1760522633272,1.084,4157.0,4156.5,2.4058224]
[1760522633485,1.084,4157.0,4156.2,0.4433]
[1760522633667,1.084,4157.0,4156.3,0.28494109]
[1760522633840,1.084,4157.0,4156.2,0.4433]
[1760522634035,2.40563881,4156.9,4155.9,2.84951307]
[1760522634239,1.084,4157.0,4155.9,2.84951307]
[1760522634477,1.084,4157.0,4156.4,2.40591025]
[1760522634740,1.084,4157.0,4156.4,2.4058736]
[1760522634980,1.204,4157.0,4156.4,2.4058736]
[1760522635345,1.204,4157.0,4156.3,0.12]
[1760522635572,1.204,4157.0,4156.4,2.40591684]
[1760522636668,2.40567421,4156.9,4156.3,0.12]
[1760522636863,2.70337421,4156.9,4156.3,0.12]
[1760522637181,2.70337421,4156.9,4156.3,2.52593981]
[1760522637182,0.1995,4156.9,4156.3,2.52593981]
[1760522637765,1.204,4157.0,4156.5,2.40586554]
[1760522637951,1.204,4157.0,4156.6,2.40581065]
[1760522638142,1.204,4157.0,4156.5,2.84915529]
[1760522638985,2.70135549,4156.9,4156.3,0.12]
[1760522639138,2.40569673,4156.8,4156.3,0.12]
[1760522639560,2.40576908,4156.7,4156.3,0.12]